bitfinex-derivatives/quotes_SOLF0:USTF0_20250730
["timestamp","ask_amount","ask_price","bid_price","bid_amount"]
[1753897146916,8.6653,179.04,179.03,102.0]
[1753897147918,12.94054352,179.04,179.03,102.0]
[1753897148917,9.86054352,179.04,179.03,102.0]
[1753897149218,12.94054352,179.04,179.03,102.0]
[1753897151323,5.5857,179.03,179.01,101.98]
[1753897151522,3.08,179.02,179.01,105.22]
[1753897151923,8.666,179.02,179.01,105.22]
[1753897152117,8.666,179.02,179.01,101.98]
[1753897152318,12.94257843,179.02,179.01,101.98]
[1753897153624,12.94257843,179.02,178.99,105.22]
[1753897153826,5.5858,179.03,179.0,3.24]
[1753897154030,7.35701528,179.02,179.0,3.24]
[1753897154228,3.08,179.02,179.0,3.24]
[1753897155031,3.08,179.01,178.99,111.90255385]
[1753897155331,3.08,179.02,178.99,111.90255385]
[1753897155534,3.08,179.02,178.99,115.14255385]
[1753897155829,3.08,179.02,179.0,3.24]
[1753897156229,5.586,179.02,179.0,3.24]
[1753897156430,3.08,179.01,179.0,3.24]
[1753897157030,3.08,179.02,179.01,3.24]
[1753897157231,7.35775164,179.02,179.01,3.24]
[1753897157435,4.27775164,179.02,179.01,7.57585385]
[1753897157622,3.08,179.04,179.02,5.586]
[1753897157825,3.08,179.06,179.03,4.33585385]
[1753897158034,4.27764622,179.05,179.03,4.33585385]
[1753897158232,4.27764622,179.04,179.03,13.16145385]
[1753897159938,4.27764622,179.04,179.02,101.98]
[1753897159939,7.35764622,179.04,179.02,107.5658]
[1753897160237,3.08,179.03,179.02,110.8058]
[1753897161336,3.08,179.03,179.02,101.98]
[1753897161734,12.94338215,179.03,179.02,101.98]
[1753897161929,7.35778215,179.03,179.02,105.22]
[1753897163040,7.35778215,179.03,179.02,110.806]
[1753897163243,3.08,179.03,179.02,105.22]
[1753897165339,3.08,179.03,179.02,110.806]
[1753897166141,3.08,179.03,179.02,107.566]
[1753897166738,3.08,179.03,179.02,110.806]
[1753897167440,7.37849339,179.03,179.02,110.806]
[1753897169546,7.37849339,179.03,179.02,107.566]
[1753897169746,7.37849339,179.03,179.02,110.656]
[1753897170846,3.08,179.03,179.02,110.656]
[1753897171242,3.24,179.07,179.03,3.09]
[1753897171442,3.24,179.05,179.04,101.96]
[1753897171642,7.53994612,179.05,179.04,101.96]
[1753897171845,7.53994612,179.05,179.04,107.5451]
[1753897172045,7.53994612,179.05,179.04,110.6351]
[1753897172347,7.53994612,179.05,179.04,107.5451]
[1753897175547,7.53994612,179.05,179.04,110.6351]
[1753897178352,4.29994612,179.05,179.04,110.6351]
[1753897178652,4.70698722,179.1,179.07,5.5841]
[1753897178845,4.30109988,179.09,179.08,101.96]
[1753897179352,7.54109988,179.09,179.08,101.96]
[1753897179551,7.54109988,179.09,179.08,105.05]
[1753897179853,7.54109988,179.09,179.08,110.6341]
[1753897181455,7.54109988,179.09,179.08,105.05]
[1753897181748,4.30109988,179.09,179.08,114.96995385]
[1753897182855,3.24,179.12,179.1,5.5832]
[1753897183153,3.24,179.12,179.11,105.03]
[1753897183354,7.5361729,179.12,179.11,105.03]
[1753897185256,7.5361729,179.12,179.11,110.6132]
[1753897185655,4.2961729,179.12,179.11,110.6132]
[1753897186254,7.5361729,179.12,179.11,110.6132]
[1753897186452,7.5361729,179.12,179.11,101.94]
[1753897187047,13.1189729,179.12,179.11,101.94]
[1753897187853,7.5361729,179.12,179.11,101.94]
[1753897188655,7.5361729,179.12,179.11,107.5232]
[1753897188854,7.5361729,179.12,179.11,110.6132]
[1753897189457,3.24,179.14,179.12,3.09]
[1753897189661,3.24,179.17,179.14,3.09]
[1753897189861,4.28760266,179.16,179.15,101.92]
[1753897190062,7.52760266,179.16,179.15,101.92]
[1753897190759,13.10920266,179.16,179.15,101.92]
[1753897190958,7.52760266,179.16,179.15,101.92]
[1753897193058,13.10920266,179.16,179.15,101.92]
[1753897193254,7.52760266,179.16,179.15,101.92]
[1753897193557,7.52760266,179.16,179.15,105.01]
[1753897193963,7.52760266,179.16,179.15,101.92]
[1753897197376,3.24,179.16,179.15,101.92]
[1753897198975,3.03,179.18,179.16,3.19]
[1753897199169,3.03,179.21,179.17,101.9]
[1753897199377,3.03,179.19,179.17,101.9]
[1753897199676,7.30236862,179.18,179.17,101.9]
[1753897200270,8.611,179.18,179.17,101.9]
[1753897201579,12.88402746,179.18,179.17,101.9]
[1753897201773,8.611,179.18,179.17,101.9]
[1753897201980,4.27233131,179.18,179.12,4.33585385]
[1753897202176,3.03,179.21,179.14,3.19]
[1753897202475,5.5812,179.18,179.15,3.19]
[1753897202680,3.03,179.17,179.16,105.07]
[1753897202880,3.03,179.22,179.16,111.79725385]
[1753897203076,5.5806,179.2,179.18,3.19]
[1753897203380,3.03,179.19,179.18,3.19]
[1753897203780,12.88138592,179.19,179.18,3.19]
[1753897203977,7.30068592,179.19,179.18,3.19]
[1753897204579,7.30068592,179.19,179.16,111.79725385]
[1753897204778,4.27068592,179.18,179.17,3.19]
[1753897205377,7.30068592,179.18,179.17,3.19]
[1753897206283,12.88178592,179.18,179.16,106.21585385]
[1753897206592,3.03,179.17,179.16,101.88]
[1753897207893,3.03,179.17,179.16,105.07]
[1753897210584,3.03,179.22,179.17,3.19]
[1753897210786,3.03,179.2,179.19,3.19]
[1753897210990,3.03,179.24,179.2,3.19]
[1753897211189,3.03,179.22,179.21,3.19]
[1753897211486,3.03,179.22,179.2,4.33585385]
[1753897211487,12.87784006,179.22,179.2,4.33585385]
[1753897211694,7.29804006,179.21,179.2,7.52585385]
[1753897212089,7.29804006,179.21,179.19,101.86]
[1753897212286,3.03,179.21,179.19,101.86]
[1753897212790,3.03,179.21,179.19,105.05]
[1753897213489,8.6102,179.21,179.19,105.05]
[1753897213693,5.5802,179.21,179.19,105.05]
[1753897213990,8.6104,179.2,179.19,105.05]
[1753897214191,8.6104,179.2,179.19,101.86]
[1753897215295,3.03,179.2,179.19,101.86]
[1753897215498,149.23367069,179.26,179.19,105.05]
[1753897215699,7.29830266,179.25,179.2,3.19]
[1753897215889,5.5796,179.23,179.2,3.19]
[1753897216091,3.03,179.22,179.21,3.19]
[1753897216992,3.03,179.21,179.2,3.19]
[1753897217196,3.03,179.21,179.2,8.7704]
[1753897217694,3.03,179.21,179.19,106.19585385]
[1753897217898,3.03,179.2,179.19,109.38585385]
[1753897218098,3.03,179.2,179.19,114.96645385]
[1753897221597,144.53388388,179.26,179.21,5.58]
[1753897221797,3.03,179.22,179.21,5.58]
[1753897222001,3.03,179.22,179.21,107.42]
[1753897222302,3.03,179.22,179.21,110.61]
[1753897223495,3.03,179.22,179.21,114.94585385]
[1753897223695,3.03,179.24,179.22,3.19]
[1753897223902,3.03,179.24,179.23,105.03]
[1753897224105,7.28865278,179.24,179.23,105.03]
[1753897224601,3.03,179.25,179.23,106.17585385]
[1753897224800,3.03,179.25,179.24,3.19]
[1753897225200,7.28870313,179.25,179.24,3.19]
[1753897226507,12.86750313,179.25,179.24,3.19]
[1753897228405,12.86750313,179.25,179.23,106.17585385]
[1753897228711,3.0,179.24,179.23,114.90525385]
[1753897229706,3.0,179.24,179.23,109.32585385]
[1753897230612,3.0,179.24,179.23,106.17585385]
[1753897231918,3.0,179.24,179.23,101.84]
[1753897232109,7.25937288,179.24,179.23,101.84]
[1753897232309,12.83847288,179.24,179.23,101.84]
[1753897233217,5.58,179.22,179.19,7.48585385]
[1753897233514,3.0,179.21,179.2,101.82]
[1753897234307,3.0,179.21,179.2,104.97]
[1753897234507,5.5796,179.23,179.2,104.97]
[1753897234508,3.0,179.24,179.21,3.15]
[1753897234810,4.68036875,179.28,179.23,3.15]
[1753897234811,3.0,179.28,179.23,3.15]
[1753897235015,3.0,179.26,179.24,104.97]
[1753897235215,7.26150772,179.25,179.24,104.97]
[1753897235815,4.26150772,179.25,179.24,109.30585385]
[1753897236009,3.0,179.27,179.25,3.15]
[1753897236209,3.0,179.27,179.24,106.15585385]
[1753897236210,3.0,179.27,179.26,109.30585385]
[1753897236713,7.26067931,179.27,179.26,109.30585385]
[1753897238215,7.26067931,179.27,179.26,114.88435385]
[1753897238415,3.0,179.29,179.26,109.30585385]
[1753897238610,4.25999204,179.28,179.27,3.15]
[1753897238813,4.25999204,179.28,179.27,7.48585385]
[1753897239018,4.25999204,179.28,179.27,13.06385385]
[1753897239214,7.25999204,179.28,179.27,13.06385385]
[1753897239612,3.0,179.35,179.27,4.33585385]
[1753897239807,3.0,179.35,179.31,4.33585385]
[1753897240013,8.5759,179.35,179.32,101.8]
[1753897240215,3.0,179.34,179.32,101.8]
[1753897240515,3.0,179.34,179.33,101.8]
[1753897242212,5.5752,179.37,179.33,101.8]
[1753897242415,3.0,179.36,179.33,101.8]
[1753897242713,3.0,179.36,179.33,106.13585385]
[1753897242912,3.0,179.35,179.33,111.71215385]
[1753897243106,3.0,179.35,179.33,106.13585385]
[1753897243520,3.0,179.34,179.31,4.33585385]
[1753897243818,3.0,179.34,179.32,101.78]
[1753897244021,3.0,179.34,179.31,101.78]
[1753897244316,5.5763,179.33,179.31,101.78]
[1753897244522,3.0,179.32,179.31,101.78]
[1753897244914,8.5766,179.32,179.31,101.78]
[1753897245213,5.5766,179.32,179.29,101.78]
[1753897245516,5.5766,179.32,179.29,106.11585385]
[1753897245711,3.0,179.3,179.29,106.11585385]
[1753897247912,3.0,179.3,179.25,4.33585385]
[1753897248115,3.0,179.3,179.26,101.8]
[1753897248315,3.0,179.28,179.26,101.8]
[1753897248906,5.5778,179.29,179.26,101.8]
[1753897249114,9.0162226,179.35,179.26,101.8]
[1753897249115,8.578,179.28,179.26,101.8]
[1753897249315,5.578,179.28,179.26,101.8]
[1753897249524,3.0,179.27,179.26,101.8]
[1753897249914,8.5782,179.27,179.26,101.8]
[1753897250115,3.0,179.27,179.26,101.8]
[1753897250518,3.0,179.27,179.23,379.39585385]
[1753897250715,3.0,179.27,179.24,101.84]
[1753897250916,5.5788,179.26,179.24,101.84]
[1753897251119,3.0,179.25,179.24,101.84]
[1753897252315,3.0,179.25,179.24,107.4191]
[1753897254425,3.0,179.25,179.24,101.84]
[1753897255222,3.0,179.25,179.24,107.4191]
[1753897256931,3.0,179.27,179.25,5.5787]
[1753897257126,3.0,179.27,179.26,101.82]
[1753897257830,3.0,179.27,179.26,107.3985]
[1753897258030,3.0,179.27,179.26,101.82]
[1753897258230,3.0,179.27,179.26,107.3985]
[1753897259029,3.0,179.27,179.26,101.82]
[1753897259827,3.0,179.27,179.26,107.3985]
[1753897260431,3.0,179.27,179.26,101.82]
[1753897260727,3.0,179.26,179.18,4.33585385]
[1753897260923,3.0,179.24,179.17,5.5813]
[1753897261124,3.0,179.22,179.18,102.0]
[1753897262331,5.5804,179.2,179.18,102.0]
[1753897262531,3.0,179.19,179.18,102.0]
[1753897262732,8.5807,179.19,179.18,102.0]
[1753897263032,3.0,179.19,179.18,102.0]
[1753897263333,3.0,179.19,179.18,106.33585385]
[1753897263535,3.0,179.21,179.18,106.33585385]
[1753897263727,151.66122366,179.27,179.2,4.33585385]
[1753897263931,3.0,179.22,179.21,102.0]
[1753897267334,3.0,179.22,179.21,107.5801]
[1753897267535,3.0,179.26,179.21,102.0]
[1753897267735,146.9805547,179.27,179.21,102.0]
[1753897267736,146.9805547,179.27,179.23,9.91505385]
[1753897267934,4.2280915,179.26,179.24,101.96]
[1753897268136,3.0,179.25,179.24,101.96]
[1753897268633,3.0,179.25,179.24,107.5391]
[1753897269236,3.0,179.25,179.24,101.96]
[1753897270538,3.0,179.26,179.24,107.5391]
[1753897270739,9.01652281,179.32,179.25,4.33585385]
[1753897271041,4.22803062,179.31,179.26,101.94]
[1753897271343,9.01652281,179.32,179.26,101.94]
[1753897271344,8.5782,179.27,179.26,101.94]
[1753897272332,12.80669303,179.27,179.26,101.94]
[1753897272833,8.5782,179.27,179.26,101.94]
[1753897275546,3.0,179.26,179.23,4.33585385]
[1753897275737,3.0,179.26,179.24,102.02]
[1753897275940,5.579,179.25,179.24,102.02]
[1753897276139,8.579,179.25,179.24,102.02]
[1753897278743,5.5798,179.22,179.19,4.33585385]
[1753897278945,4.33585385,179.28,179.2,101.98]
[1753897279244,3.0,179.21,179.2,107.5602]
[1753897286358,3.0,179.21,179.2,101.98]
[1753897287552,3.0,179.21,179.2,107.5604]
[1753897287854,3.0,179.21,179.19,4.33585385]
[1753897288155,3.0,179.21,179.2,101.94]
[1753897288553,8.5801,179.21,179.2,101.94]
[1753897290360,5.5809,179.19,179.15,379.29585385]
[1753897290560,3.22,179.18,179.16,101.92]
[1753897291357,5.5805,179.2,179.16,101.92]
[1753897291558,3.22,179.19,179.16,101.92]
[1753897291757,3.22,179.19,179.17,5.5813]
[1753897291958,3.22,179.19,179.18,101.92]
[1753897292159,8.8007,179.19,179.18,101.92]
[1753897293554,3.22,179.19,179.18,101.92]
[1753897293760,3.22,179.2,179.18,101.92]
[1753897294263,3.22,179.2,179.19,5.5806]
[1753897294652,3.22,179.2,179.18,111.83675385]
[1753897295062,5.5801,179.21,179.18,111.83675385]
[1753897295363,3.22,179.19,179.18,111.83675385]
[1753897297364,3.22,179.19,179.18,106.25585385]
[1753897297964,8.8007,179.19,179.18,101.92]
[1753897299265,8.8007,179.19,179.16,101.86]
[1753897299266,5.5815,179.17,179.16,101.86]
[1753897299464,13.04504255,179.17,179.16,101.86]
[1753897300368,8.8015,179.17,179.16,101.86]
[1753897304564,4.6905651,179.23,179.16,106.19585385]
[1753897304766,6.17896831,179.25,179.16,106.19585385]
[1753897304767,4.24125682,179.22,179.18,4.33585385]
[1753897304967,3.22,179.23,179.2,4.33585385]
[1753897305162,4.24088032,179.22,179.2,4.33585385]
[1753897305469,3.22,179.21,179.2,9.91595385]
[1753897305869,3.22,179.21,179.2,4.33585385]
[1753897306974,3.22,179.21,179.2,9.91615385]
[1753897307268,3.22,179.22,179.2,9.91615385]
[1753897308477,3.22,179.21,179.2,9.91615385]
[1753897308663,3.22,179.21,179.18,4.33585385]
[1753897308868,3.22,179.21,179.19,102.02]
[1753897309572,3.22,179.2,179.19,102.02]
[1753897310569,3.22,179.22,179.19,107.6007]
[1753897310772,3.22,179.21,179.19,102.02]
[1753897311075,8.7997,179.22,179.2,4.33585385]
[1753897311273,5.5797,179.22,179.2,4.33585385]
[1753897311474,3.22,179.21,179.2,4.33585385]
[1753897313072,3.22,179.21,179.2,9.91625385]
[1753897313472,3.22,179.21,179.19,4.33585385]
[1753897313774,3.22,179.21,179.2,102.06]
[1753897313970,4.22800063,179.21,179.17,4.33585385]
[1753897314171,4.6905651,179.25,179.1,4.33585385]
[1753897314172,7.44820434,179.2,179.18,102.06]
[1753897314382,3.22,179.23,179.18,102.06]
[1753897314677,3.22,179.21,179.18,102.06]
[1753897314877,3.22,179.19,179.18,102.06]
[1753897315273,8.8007,179.19,179.18,102.06]
[1753897317680,13.03027508,179.19,179.18,102.06]
[1753897318778,3.22,179.19,179.18,102.06]
[1753897319279,4.23074463,179.19,179.18,102.06]
[1753897319780,7.24074463,179.19,179.18,102.06]
[1753897321179,3.01,179.19,179.18,102.06]
[1753897322179,3.01,179.19,179.18,107.641]
[1753897322572,3.01,179.2,179.19,5.5807]
[1753897322977,3.01,179.2,179.18,102.06]
[1753897323878,3.01,179.19,179.18,102.06]
[1753897324183,3.01,179.2,179.19,5.5807]
[1753897324378,7.24343518,179.2,179.18,102.06]
[1753897324572,3.01,179.2,179.19,4.33585385]
[1753897324977,7.24339873,179.2,179.19,4.33585385]
[1753897325578,3.01,179.2,179.19,4.33585385]
[1753897325882,3.01,179.2,179.19,9.91655385]
[1753897326278,7.24422636,179.2,179.19,4.33585385]
[1753897326472,12.82462636,179.2,179.18,102.06]
[1753897326674,3.01,179.23,179.19,4.33585385]
[1753897326878,3.01,179.21,179.19,4.33585385]
[1753897327178,3.01,179.21,179.19,9.91645385]
[1753897327583,3.01,179.21,179.19,4.33585385]
[1753897327785,3.01,179.21,179.19,9.91635385]
[1753897328285,3.01,179.21,179.2,5.5804]
[1753897328586,3.01,179.2,179.19,4.33585385]
[1753897328885,3.01,179.25,179.19,4.33585385]
[1753897329089,3.01,179.23,179.21,4.33585385]
[1753897329387,3.01,179.26,179.21,4.33585385]
[1753897329576,3.01,179.24,179.21,4.33585385]
[1753897329775,3.01,179.22,179.21,4.33585385]
[1753897330185,3.01,179.23,179.21,4.33585385]
[1753897330387,3.01,179.23,179.22,4.33585385]
[1753897330683,7.24419836,179.23,179.22,9.91545385]
[1753897331786,3.01,179.25,179.22,4.33585385]
[1753897331986,3.01,179.25,179.24,4.33585385]
[1753897332187,7.24389959,179.25,179.24,4.33585385]
[1753897332385,7.24389959,179.25,179.24,9.91495385]
[1753897335086,3.01,179.25,179.24,9.91495385]
[1753897336489,3.01,179.28,179.24,4.33585385]
[1753897336690,5.5773,179.3,179.27,4.33585385]
[1753897336887,4.22866761,179.29,179.27,106.41585385]
[1753897337088,7.23866761,179.28,179.27,106.41585385]
[1753897337289,3.01,179.28,179.27,106.41585385]
[1753897337491,3.01,179.32,179.28,5.5777]
[1753897337690,3.01,179.3,179.29,4.33585385]
[1753897337990,7.23672445,179.3,179.29,4.33585385]
[1753897338188,3.01,179.3,179.29,9.91345385]
[1753897338386,3.01,179.3,179.29,4.33585385]
[1753897341592,3.01,179.3,179.27,106.39585385]
[1753897342888,3.01,179.28,179.27,106.39585385]
[1753897345194,3.01,179.28,179.27,102.06]
[1753897345392,3.01,179.28,179.27,106.39585385]
[1753897346799,3.01,179.28,179.27,111.97405385]
[1753897347789,3.01,179.28,179.27,106.39585385]
[1753897348996,2.98,179.29,179.27,111.97405385]
[1753897349195,2.98,179.28,179.27,111.97405385]
[1753897350796,2.98,179.28,179.27,102.06]
[1753897351391,2.98,179.28,179.27,107.6382]
[1753897352191,2.98,179.34,179.28,5.5778]
[1753897352391,2.98,179.32,179.28,5.5778]
[1753897352595,2.98,179.3,179.28,5.5778]
[1753897354198,2.98,179.3,179.29,5.5776]
[1753897354893,2.98,179.3,179.29,9.91345385]
[1753897355097,2.98,179.32,179.29,4.33585385]
[1753897355298,2.98,179.33,179.31,4.33585385]
[1753897355792,2.98,179.33,179.32,5.5766]
[1753897356196,149.09142615,179.37,179.31,4.33585385]
[1753897356197,2.98,179.35,179.31,4.33585385]
[1753897356394,2.98,179.34,179.33,9.91215385]
[1753897356597,2.98,179.34,179.33,111.91215385]
[1753897357699,2.98,179.36,179.33,111.91215385]
[1753897358395,2.98,179.36,179.33,106.33585385]
[1753897360300,5.5759,179.35,179.33,106.33585385]
[1753897360599,2.98,179.34,179.33,106.33585385]
[1753897361196,2.98,179.34,179.33,101.94]
[1753897361694,5.5768,179.32,179.29,9.91315385]
[1753897361894,2.98,179.31,179.3,101.96]
[1753897362394,2.98,179.31,179.28,4.33585385]
[1753897362598,2.98,179.31,179.29,101.96]
[1753897362997,5.5774,179.3,179.29,101.96]
[1753897363501,2.98,179.33,179.3,5.5772]
[1753897363701,2.98,179.33,179.3,9.91305385]
[1753897363902,2.98,179.36,179.3,4.33585385]
[1753897364204,2.98,179.33,179.31,5.5767]
[1753897364894,2.98,179.34,179.32,4.33585385]
[1753897365302,2.98,179.34,179.33,102.02]
[1753897365804,2.98,179.34,179.33,107.5963]
[1753897366397,2.98,179.34,179.33,102.02]
[1753897367298,2.98,179.34,179.33,107.5963]
[1753897368400,2.98,179.4,179.33,102.02]
[1753897368604,2.98,179.38,179.35,4.33585385]
[1753897369102,2.98,179.37,179.35,9.91155385]
[1753897370196,9.02641895,179.42,179.35,4.33585385]
[1753897370407,2.98,179.39,179.33,101.98]
[1753897370592,2.98,179.37,179.33,101.98]
[1753897371299,2.98,179.35,179.33,101.98]
[1753897371805,8.556,179.34,179.33,101.98]
[1753897375994,12.77795561,179.34,179.33,101.98]
[1753897377607,4.22195561,179.34,179.3,107.5772]
[1753897377806,7.20195561,179.33,179.3,107.5772]
[1753897378001,2.98,179.33,179.3,107.5772]
[1753897379309,5.5766,179.32,179.3,107.5772]
[1753897379607,3.09,179.31,179.3,102.0]
[1753897381710,8.6669,179.31,179.3,102.0]
[1753897381906,12.89571458,179.31,179.3,102.0]
[1753897383303,5.5779,179.28,179.27,101.96]
[1753897383504,8.6679,179.28,179.27,101.96]
[1753897384105,3.09,179.28,179.27,101.96]
[1753897384305,3.09,179.32,179.27,106.29585385]
[1753897384515,7.31938619,179.31,179.29,4.33585385]
[1753897384713,3.09,179.31,179.29,9.91345385]
[1753897385008,3.09,179.32,179.29,4.33585385]
[1753897385207,3.09,179.3,179.28,4.33585385]
[1753897385408,5.5766,179.32,179.29,5.5776]
[1753897385706,4.22900816,179.31,179.29,5.5776]
[1753897385907,5.5766,179.32,179.29,5.5776]
[1753897386207,3.09,179.3,179.29,5.5776]
[1753897386711,3.09,179.29,179.28,9.91365385]
[1753897387115,3.09,179.29,179.28,4.33585385]
[1753897388114,3.09,179.29,179.28,9.91375385]
[1753897389213,3.09,179.29,179.28,4.33585385]
[1753897389607,3.09,179.29,179.28,9.91375385]
[1753897390817,3.09,179.31,179.29,5.5775]
[1753897391319,3.09,179.3,179.28,9.91355385]
[1753897391715,5.5771,179.31,179.28,9.91355385]
[1753897391917,3.09,179.29,179.28,9.91355385]
[1753897392118,3.09,179.29,179.28,4.33585385]
[1753897392614,5.5771,179.31,179.28,9.91375385]
[1753897392916,3.09,179.3,179.28,9.91375385]
[1753897394218,5.5773,179.3,179.27,107.5381]
[1753897394409,3.09,179.29,179.28,4.33585385]
[1753897396517,3.09,179.29,179.28,9.91375385]
[1753897397118,3.09,179.36,179.33,5.5763]
[1753897397318,3.09,179.34,179.32,4.33585385]
[1753897397513,3.09,179.34,179.33,102.02]
[1753897397711,12.8966916,179.34,179.33,102.02]
[1753897398907,7.3206916,179.34,179.33,102.02]
[1753897399920,3.09,179.33,179.29,9.91315385]
[1753897400119,3.09,179.31,179.3,102.0]
[1753897400321,7.3206916,179.31,179.3,102.0]
[1753897401611,7.3206916,179.31,179.3,107.5772]
[1753897401612,3.09,179.31,179.3,107.5772]
[1753897402715,3.09,179.31,179.3,102.0]
[1753897403024,7.32188618,179.31,179.3,102.0]
[1753897406423,12.89878618,179.31,179.3,102.0]
[1753897407126,3.09,179.29,179.28,101.92]
[1753897407819,3.09,179.29,179.28,107.4979]
[1753897408023,3.09,179.3,179.28,107.4979]
[1753897408217,3.09,179.3,179.29,4.33585385]
[1753897408414,7.322866,179.3,179.29,4.33585385]
[1753897410222,12.900066,179.3,179.29,4.33585385]
[1753897411530,8.8275,179.29,179.28,101.92]
[1753897411722,13.060366,179.29,179.28,101.92]
[1753897412122,3.25,179.29,179.28,101.92]
[1753897414127,7.48398995,179.29,179.28,101.92]
[1753897414519,13.06148995,179.29,179.28,101.92]
[1753897415628,7.48398995,179.29,179.28,101.92]
[1753897417129,13.06148995,179.29,179.28,101.92]
[1753897417625,7.48398995,179.29,179.28,101.92]
[1753897418930,7.48398995,179.29,179.28,107.4979]
[1753897419131,4.68990951,179.34,179.28,101.92]
[1753897419331,4.33585385,179.37,179.28,101.92]
[1753897419332,3.25,179.3,179.28,101.92]
[1753897419529,4.68990951,179.35,179.29,4.33585385]
[1753897419831,7.4857521,179.34,179.33,4.33585385]
[1753897420126,7.4857521,179.34,179.33,106.17585385]
[1753897421031,7.4857521,179.34,179.33,4.33585385]
[1753897421331,7.4857521,179.34,179.33,106.17585385]
[1753897422232,7.4857521,179.34,179.33,111.75215385]
[1753897426636,3.25,179.37,179.36,5.5754]
[1753897426834,3.25,179.37,179.36,111.75125385]
[1753897427238,3.25,179.37,179.28,4.33585385]
[1753897427539,3.25,179.37,179.32,4.33585385]
[1753897427738,5.5756,179.36,179.33,107.4163]
[1753897427938,3.25,179.35,179.33,107.4163]
[1753897429241,3.25,179.35,179.33,101.84]
[1753897432444,3.25,179.35,179.33,107.4163]
[1753897432639,3.25,179.35,179.33,101.84]
[1753897432839,3.25,179.34,179.33,101.84]
[1753897433342,3.25,179.34,179.33,107.4163]
[1753897435844,10.2671203,179.39,179.36,5.5752]
[1753897436236,4.6926203,179.4,179.37,101.82]
[1753897436437,3.25,179.39,179.38,5.5747]
[1753897438834,7.4552198,179.39,179.38,5.5747]
[1753897439842,7.4052198,179.39,179.38,5.5747]
[1753897444244,3.2,179.39,179.38,5.5747]
[1753897445250,3.2,179.42,179.39,5.5744]
[1753897445452,7.40068005,179.41,179.4,101.8]
[1753897445750,7.40068005,179.41,179.37,4.33585385]
[1753897445944,3.2,179.39,179.38,101.8]
[1753897446347,8.7745,179.39,179.38,101.8]
[1753897446546,3.2,179.39,179.38,101.8]
[1753897447545,3.2,179.42,179.36,101.8]
[1753897447751,3.2,179.4,179.36,101.8]
[1753897448053,3.2,179.37,179.36,101.8]
[1753897450854,8.775,179.37,179.36,101.8]
[1753897451154,12.97503906,179.37,179.36,101.8]
[1753897451652,12.97503906,179.37,179.28,4.33585385]
[1753897451653,3.2,179.35,179.28,4.33585385]
[1753897451955,4.20003906,179.37,179.28,4.33585385]
[1753897451956,3.2,179.33,179.29,101.8]
[1753897452156,5.5768,179.32,179.29,101.8]
[1753897452552,3.2,179.31,179.29,101.8]
[1753897452855,3.2,179.3,179.29,101.8]
[1753897453954,3.2,179.3,179.29,107.3775]
[1753897454756,3.2,179.3,179.29,101.8]
[1753897458264,3.2,179.3,179.29,107.3775]
[1753897458862,3.2,179.32,179.29,107.3775]
[1753897460062,8.7766,179.32,179.29,107.3775]